No of Transactions,Dept_Family,Entity_Name,Cert Date,Supplier Name,Reference,Gross Amt,Group/Department,Type of Expenditure - Subjective Codes
1,DCMS,Historic England,06/04/2022,B F Keane Electrical Contractors Limited,0040140915,"30,562.07",Corporate Services-Office Estate,Repairs
2,DCMS,Historic England,27/04/2022,Bedford Borough Council,0083001709,"623,481.00",Regions Group-High Str (HAZ) - Regions,Grants Area
3,DCMS,Historic England,11/04/2022,Bevan Brittan LLP,0040140993,"30,894.78",Governance & Legal-Governance & Legal Department,Legal Fees
4,DCMS,Historic England,13/04/2022,Capita IB Solutions Ltd,0040140849,"25,779.00",Corporate Services-Finance & Procurement Dept,Software Maintenance
5,DCMS,Historic England,13/04/2022,Capita IB Solutions Ltd,0040140849,"47,152.98",Corporate Services-Finance & Procurement Dept,Software Maintenance
6,DCMS,Historic England,27/04/2022,Capita IB Solutions Ltd,0040141144,"29,016.00",Corporate Services-Finance & Procurement Dept,Software Maintenance
7,DCMS,Historic England,12/04/2022,CDW UK,0040140800,"38,284.13",Corporate Services-IMT,Equipment & Furniture <10k
8,DCMS,Historic England,13/04/2022,CDW UK,0040140984,"40,363.20",Corporate Services-IMT,Equipment & Furniture <10k
9,DCMS,Historic England,06/04/2022,Croft Building and Conservation Ltd,0040140837,"24,162.00",Shrewsbury Flax Mill Maltings-Shrewsbury Flax Mill Maltings,Works (Non Office)
10,DCMS,Historic England,06/04/2022,Croft Building and Conservation Ltd,0040140837,"4,844.40",Shrewsbury Flax Mill Maltings-Shrewsbury Flax Mill Maltings,Works (Non Office)
11,DCMS,Historic England,04/04/2022,Croft Building and Conservation Ltd,0040140838,"570,992.40",Shrewsbury Flax Mill Maltings-Shrewsbury Flax Mill Maltings,Works (Non Office)
12,DCMS,Historic England,04/04/2022,Croft Building and Conservation Ltd,0040140839,570.00,Shrewsbury Flax Mill Maltings-Shrewsbury Flax Mill Maltings,Works (Non Office)
13,DCMS,Historic England,04/04/2022,Croft Building and Conservation Ltd,0040140839,"180,000.00",Shrewsbury Flax Mill Maltings-Shrewsbury Flax Mill Maltings,Works (Non Office)
14,DCMS,Historic England,07/04/2022,Croft Building and Conservation Ltd,0040140978,"201,762.77",Shrewsbury Flax Mill Maltings-Shrewsbury Flax Mill Maltings,Works (Non Office)
15,DCMS,Historic England,07/04/2022,Croft Building and Conservation Ltd,0040140978,"51,998.18",Shrewsbury Flax Mill Maltings-Shrewsbury Flax Mill Maltings,Works (Non Office)
16,DCMS,Historic England,28/04/2022,EDF  ,0020074923,"27,069.20",Corporate Services-Corporate,Electricity
17,DCMS,Historic England,04/04/2022,ETH Zurich,0020074897,"32,960.00",Policy & Evidence-National Specialist Services,Bought in Research
18,DCMS,Historic England,12/04/2022,Government Internal Audit Agency,0040140945,"52,500.00",Governance & Legal-Internal Audit,Bought in Advice
19,DCMS,Historic England,13/04/2022,GTT-EMA Ltd,0040140985,"45,216.72",Corporate Services-IMT,Network Contracts
20,DCMS,Historic England,11/04/2022,Helyx Secure Information Systems Ltd,0040141033,"29,998.10",Policy & Evidence-Analytics,Bought in Research
21,DCMS,Historic England,04/04/2022,Historic Coventry Trust,0090516401,"34,167.00",Regions Group-Midlands - RD,Grants Capacity Building Grants
26,DCMS,Historic England,12/04/2022,ITSUS Consulting Ltd,0040140851,"29,700.00",Corporate Services-IMT,Network Contracts
27,DCMS,Historic England,26/04/2022,Landmark Chambers,0040141122,"53,580.00",Governance & Legal-Governance & Legal Department,Legal Fees
28,DCMS,Historic England,21/04/2022,Link Contracting Services Ltd,0040140954,"70,405.39",Corporate Services-Corporate,WIP Refurbishment Works
29,DCMS,Historic England,04/04/2022,Mather & Co Ltd,0040140706,"106,489.55",Shrewsbury Flax Mill Maltings-Shrewsbury Flax Mill Maltings,Bought in Advice
30,DCMS,Historic England,04/04/2022,Mather & Co Ltd,0040140803,"57,378.00",Shrewsbury Flax Mill Maltings-Shrewsbury Flax Mill Maltings,Bought in Advice
31,DCMS,Historic England,04/04/2022,MOLA Northampton,0040140812,"25,000.00",Business Improvement-Grants,Historic Env Commissions VAT
32,DCMS,Historic England,04/04/2022,Morris Hargreaves McIntyre,0040140778,"75,600.00",Business Improvement-Grants,Bought in Advice
33,DCMS,Historic England,07/04/2022,RSM UK Tax and Accounting Ltd,0040140463,"-16,710.00",Corporate Services-Finance & Procurement Dept,Bought in Advice
34,DCMS,Historic England,07/04/2022,RSM UK Tax and Accounting Ltd,0040140463,-961.20,Corporate Services-Finance & Procurement Dept,Bought in Advice
35,DCMS,Historic England,04/04/2022,SoftwareOne UK Ltd,0040140698,"73,228.28",Corporate Services-IMT,Hosting
36,DCMS,Historic England,04/04/2022,Sunbelt Rentals Ltd,0040140695,"32,102.40",Policy & Evidence-National Specialist Services,Plant & Equipment > 10k
37,DCMS,Historic England,04/04/2022,Sunbelt Rentals Ltd,0040140695,"2,457.60",Policy & Evidence-National Specialist Services,Plant & Equipment > 10k
38,DCMS,Historic England,06/04/2022,T Coleborn & Son Ltd,0040140948,"25,098.07",Corporate Services-Office Estate,Repairs
39,DCMS,Historic England,06/04/2022,Test Partners Ltd,0040140897,"25,740.00",Public Engagement-Content & Marketing,System Developments <50k
40,DCMS,Historic England,12/04/2022,The Historic England Foundation,0020074898,"52,000.00",Business Improvement-Partnerships & Philanthropy,Programme Grants
41,DCMS,Historic England,25/04/2022,Travel Planet,0040141096,"31,652.03",Corporate Services-Corporate,Travel Planet Control
42,DCMS,Historic England,25/04/2022,Travel Planet,0040141096,"14,050.48",Corporate Services-Corporate,Travel Planet Control
43,DCMS,Historic England,05/04/2022,Vodafone Corporate Ltd,0040140773,4.25,Corporate Services-IMT,Telephony
44,DCMS,Historic England,05/04/2022,Vodafone Corporate Ltd,0040140773,"33,412.85",Corporate Services-IMT,Telephony
45,DCMS,Historic England,04/04/2022,Vodafone Corporate Ltd,0040140774,"87,274.67",Corporate Services-IMT,Telephony
46,DCMS,Historic England,04/04/2022,Vodafone Corporate Ltd,0040140775,"42,919.29",Corporate Services-IMT,Telephony
47,DCMS,Historic England,05/04/2022,Vodafone Corporate Ltd,0040140776,0.15,Corporate Services-IMT,Telephony
48,DCMS,Historic England,05/04/2022,Vodafone Corporate Ltd,0040140776,"25,556.21",Corporate Services-IMT,Telephony
49,DCMS,Historic England,04/04/2022,Vodafone Corporate Ltd,0040140794,"-43,869.17",Corporate Services-IMT,Telephony
